Cogmind - Beta 13 @@@ ROGUE MODE // 2024.04.09 @ 21:25:32 Player: Abkaal Result: Destroyed by P-80 Master with Gamma Rifle Performance ------------- Evolutions (7) 3500 Regions Visited (19) 3800 Robots Destroyed (190) 950 Value Destroyed (5573) 5573 Prototype IDs (51) 1020 Alien Tech Used (0) 0 Bonus (1855) 1855 TOTAL SCORE: 16698 Bonus ------- High Alert Combat Kills 266 Follower Combat Kills 1090 Aligned with FarCom 300 Met Imprinter 300 Friendly Fire -101 Cogmind --------- Core Integrity 0/1300 Matter 240/300 Energy 168/340 System Corruption 62% Temperature Cool (0) Movement Hovering (48) Location -3/Research Parts ------- > --- POWER (1) -------- Heavy Antimatter Reactor > --- PROPULSION (5) --- Improved Antigrav System Improved Antigrav System Improved Antigrav System Antigrav Array > --- UTILITY (13) ----- Improved Melee Analysis Suite Improved Target Analyzer Improved Target Analyzer Advanced Hacking Suite Advanced System Shield > --- WEAPON (2) ------- (None) > --- INVENTORY (5) ---- Advanced Terrain Scanner Compact HERF Cannon Fusion Bomb Launcher Peak State ------------ > --- POWER ------------ Light Quantum Reactor > --- PROPULSION ------- Xenon Bombardment Thruster Xenon Bombardment Thruster Xenon Bombardment Thruster Cooled Impulse Thruster > --- UTILITY ---------- Medium Storage Unit Gravity Neutralizer Advanced Signal Interpreter Improved Melee Analysis Suite Improved Target Analyzer Improved Target Analyzer Makeshift ECM Suite Centrium Heavy Armor Plating Advanced Hacking Suite System Mapper Advanced System Shield > --- WEAPON ----------- Compact HERF Cannon Advanced Datajack > --- INVENTORY -------- Myomer Leg Antigrav Array Advanced Terrain Scanner Compact HERF Cannon Fusion Bomb Launcher [Rating: 117] Favorites ----------- Power Cooled Ion Engine Engine Cooled Ion Engine Power Core Light Nuclear Core Reactor Light Antimatter Reactor Propulsion Nuclear Pulse Thruster Treads Light Treads Leg Carbon-fiber Leg Wheel Compact Wheel Hover Unit Antigrav System Flight Unit Nuclear Pulse Thruster Utility Hacking Suite Device Improved Terrain Scanner Storage Huge Storage Unit Processor Advanced Terrain Scan Processor Hackware Hacking Suite Protection Light Armor Plating Weapon Powered Hammer Energy Gun Heavy Particle Gun Energy Cannon Advanced Beam Cannon Ballistic Gun Precision Assault Rifle Ballistic Cannon Gauss Cannon Launcher Precision Grenade Launcher Impact Weapon Powered Hammer Slashing Weapon Chainsword Special Melee Weapon Advanced Datajack Build | -11 -10 -10 -9 -9 -9 -8 -8 -7 -6 -6 -6 -6 -6 -6 -5 -5 -4 -4 -3 ------- Run | Yrd Mat Min Mat Min Exi Min Mat Fac Fac Was Fac Low Low Zio Pro Fac Fac Upp Res Slots Evolved 14 | . . . 2 . . . 2 2 2 . . . . . . 2 2 . 2 Power . | . . . . . . . . . . . . . . . . . . . . Propulsion 3 | . . . . . . . . 2 . . . . . . . . 1 . . Utility 11 | . . . 2 . . . 2 . 2 . . . . . . 2 1 . 2 Weapon . | . . . . . . . . . . . . . . . . . . . . Parts Attached 286 | 8 7 6 23 6 . 6 36 39 23 . 13 . 2 5 8 46 17 1 40 Power 40 | 1 1 2 4 . . 2 5 5 2 . 2 . . . 2 5 2 1 6 Engine 14 | 1 . 2 2 . . 2 5 . . . . . . . . 2 . . . Core 18 | . 1 . 2 . . . . 5 2 . 2 . . . 2 3 1 . . Reactor 8 | . . . . . . . . . . . . . . . . . 1 1 6 Propulsion 84 | 3 2 . 5 3 . . 3 15 9 . 5 . . . 2 14 4 . 19 Treads 8 | 2 . . 1 1 . . . . . . . . . . . 1 1 . 2 Leg 2 | . . . . . . . . . . . . . . . . 1 . . 1 Wheel 15 | 1 2 . 4 2 . . 3 . . . . . . . . 1 . . 2 Hover 13 | . . . . . . . . 1 . . . . . . . 4 3 . 5 Flight 46 | . . . . . . . . 14 9 . 5 . . . 2 7 . . 9 Utility 82 | 1 3 1 7 1 . . 16 14 5 . 1 . . 3 2 15 5 . 8 Device 27 | . . . 1 . . . 3 8 . . 1 . . 2 . 7 3 . 2 Storage 10 | 1 2 . . . . . 2 1 2 . . . . . . 1 . . 1 Processor 10 | . . . 1 . . . 1 2 . . . . . . . 5 1 . . Hackware 12 | . . . . . . . . 2 3 . . . . 1 2 . 1 . 3 Protection 23 | . 1 1 5 1 . . 10 1 . . . . . . . 2 . . 2 Artifact . | . . . . . . . . . . . . . . . . . . . . Weapon 80 | 3 1 3 7 2 . 4 12 5 7 . 5 . 2 2 2 12 6 . 7 Energy Gun 23 | 2 1 2 2 1 . 1 6 . . . 2 . . . . 2 2 . 2 Energy Cannon 11 | . . . 4 1 . 1 1 . . . 1 . . 1 . . 1 . 1 Ballistic Gun 10 | 1 . 1 1 . . . 4 . . . . . . . . 1 . . 2 Ballistic Cannon 2 | . . . . . . 1 . . . . . . 1 . . . . . . Launcher 15 | . . . . . . 1 1 3 2 . 1 . 1 1 1 3 . . 1 Special Weapon . | . . . . . . . . . . . . . . . . . . . . Impact Weapon 12 | . . . . . . . . 1 1 . 1 . . . 1 5 3 . . Slashing Weapon 6 | . . . . . . . . 1 4 . . . . . . 1 . . . Piercing Weapon . | . . . . . . . . . . . . . . . . . . . . Special Melee Weapon 1 | . . . . . . . . . . . . . . . . . . . 1 Unidentified Prototypes 22 | . . . 4 . . . 4 3 1 . 3 . . 1 . 1 1 . 4 Corrupted Parts 6 | . . . 1 . . . . . . . . . . . . . . . 5 System Corruption 22 | . . . 4 . . . . . . . . . . . . . . . 18 Parts Lost 107 | . 1 1 11 1 . 2 6 4 4 . . . . . 9 24 13 4 27 Power 17 | . . 1 2 . . . . 1 . . . . . . 3 2 2 2 4 Propulsion 42 | . . . 4 1 . . 1 2 2 . . . . . 1 14 5 . 12 Utility 29 | . . . 2 . . 1 5 1 1 . . . . . 3 5 4 1 6 Weapon 19 | . 1 . 3 . . 1 . . 1 . . . . . 2 3 2 1 5 Highest Loss Streak 9 | . 1 1 4 1 . 1 2 3 2 . . . . . 9 7 5 4 6 To Critical Strikes . | . . . . . . . . . . . . . . . . . . . . Average Slot Usage (%) 87 | . 98 100 97 94 88 85 88 95 97 97 96 100 99 94 80 76 69 54 63 Engine 3 | . 5 5 6 11 11 11 9 . . . . . . . . . 2 . . Core 3 | . 8 8 4 . . . . 6 5 6 5 6 6 6 4 2 1 3 . Treads 1 | . 13 . 5 . . . . . . . . . . . . . . . . Wheel 7 | . 14 28 16 16 11 11 12 . . . . . . . . . 1 . . Flight 9 | . . . . . . . . 29 25 26 24 26 26 26 19 9 . . 10 Device 6 | . . . 10 11 11 11 11 6 6 6 5 6 6 6 4 7 2 5 6 Storage 7 | . 14 14 11 11 11 11 9 7 5 6 6 6 6 6 6 2 5 5 2 Processor 13 | . . . 1 11 11 11 9 14 13 13 13 13 13 13 13 20 32 34 18 Hackware 10 | . . . . . . . . 14 25 26 26 26 26 26 24 15 10 . 9 Protection 7 | . 12 14 19 10 11 8 19 . . . . . . . . 1 . . . Energy Gun 5 | . 18 25 10 11 11 3 10 . . 4 . . . . . . . . . Energy Cannon 2 | . . . 10 11 11 7 1 . . . . . . . . . . . . Ballistic Gun 1 | . 9 2 1 . . . 6 . . . . . . . . . . . 3 Impact Weapon 2 | . . . . . . . . 6 5 6 6 6 6 6 5 3 5 4 . Naked Turns . | . . . . . . . . . . . . . . . . . . . . Heaviest Build 110 | 14 91 94 104 103 103 110 105 105 22 18 22 22 22 22 22 27 33 25 37 Greatest Support 100 | 40 40 32 32 32 28 28 37 32 22 20 24 24 24 24 27 44 29 15 100 Greatest Overweight (x) 6 | 1 2 2 6 6 3 3 3 4 1 . . . . . . 4 5 1 5 Average Overweight (x) . | . 1 2 4 3 3 3 2 . . . . . . . . . 1 . . Largest Inventory Capacity 25 | 8 25 25 25 25 25 25 25 25 8 8 8 8 8 8 8 10 10 10 10 Average Capacity 15 | 7 16 25 25 25 25 25 25 8 7 8 8 8 8 8 8 6 10 10 8 Most Carried 25 | 6 25 25 25 25 25 25 25 25 8 8 8 8 8 8 8 9 10 8 10 Average Carried 14 | 4 15 24 24 24 24 24 24 8 7 7 7 8 8 7 7 5 8 7 7 Final Capacity 25 | 8 25 25 25 25 25 25 25 8 8 8 8 8 8 8 8 10 10 10 5 Final Carried 25 | 6 25 25 24 25 25 25 25 8 7 8 8 8 8 8 4 9 8 7 3 Class Distribution -------------------- 33% | Mutant 20% | Hacker-Scout 12% | Scavenger-Mutant 11% | Hacker-Mutant 7% | Hacker-Sprinter 6% | Hacker-Assassin 3% | Skirmisher Dominant Class ---------------- Mutant | -10/Materials Mutant | -10/Mines Mutant | -9/Materials Mutant | -9/Mines Mutant | -9/Exiles Skirmisher | -8/Mines Scavenger-Mutant | -8/Materials Hacker-Scout | -7/Factory Hacker-Scout | -6/Factory Hacker-Scout | -6/Waste Hacker-Scout | -6/Factory Hacker-Sprinter | -6/Lower Caves Hacker-Sprinter | -6/Lower Caves Hacker-Sprinter | -6/Zion Hacker-Sprinter | -5/Proximity Caves Hacker-Mutant | -5/Factory Hacker-Mutant | -4/Factory Scavenger-Mutant | -4/Upper Caves Scavenger-Sprinter | -3/Research Resources | -11 -10 -10 -9 -9 -9 -8 -8 -7 -6 -6 -6 -6 -6 -6 -5 -5 -4 -4 -3 ----------- Run | Yrd Mat Min Mat Min Exi Min Mat Fac Fac Was Fac Low Low Zio Pro Fac Fac Upp Res Matter Collected 3430 | 255 201 40 301 52 . 45 538 342 221 86 184 15 33 63 63 487 139 . 365 Remotely . | . . . . . . . . . . . . . . . . . . . . Salvage Created 7680 | . 615 46 1318 185 . 129 1722 520 226 . 404 . 66 . 33 1400 814 61 141 Parts 303 | . 30 4 71 5 . 8 66 17 4 . . . 4 . 5 61 16 1 11 Haulers Intercepted 18 | . 2 . 3 . . . 4 3 1 . 3 . . . . 2 . . . Recyclers Shooed 3 | . 1 1 . . . . 1 . . . . . . . . . . . . Parts Field Recycled 9 | . . . . . . . . 9 . . . . . . . . . . . Retrieved Matter 84 | . . . . . . . . 84 . . . . . . . . . . . Parts Self-Destructed 2 | . . . . . . . . . . . . . 2 . . . . . . Prevented 3 | . . . . . . . . . . . . . 2 . . . . 1 . Kills | -11 -10 -10 -9 -9 -9 -8 -8 -7 -6 -6 -6 -6 -6 -6 -5 -5 -4 -4 -3 ------- Run | Yrd Mat Min Mat Min Exi Min Mat Fac Fac Was Fac Low Low Zio Pro Fac Fac Upp Res Combat Hostiles Destroyed 109 | . 9 1 25 4 . 6 22 4 . . 2 . 3 . 4 16 9 1 3 Melee 24 | . . . . . . . . 4 . . 1 . 3 . . 11 4 . 1 Guns 42 | . 9 . 9 1 . 2 19 . . . . . . . . . . . 2 Cannons 23 | . . . 15 2 . 4 2 . . . . . . . . . . . . AOE 9 | . . . 1 1 . . . . . . . . . . 4 3 . . . Classes Destroyed 13 | . 5 1 3 . . . 2 2 . . . . . . . . . . . Worker 12 | . . . 1 . . . 2 2 2 . . . . . . 4 1 . . Builder 10 | . . . . . . . 1 4 3 . . . . . . 2 . . . Tunneler 7 | . . . . . . . . 3 . . . . . . . 3 1 . . Hauler 18 | . 2 . 3 . . . 4 3 1 . 3 . . . . 2 . . . Recycler 10 | . 1 . . . . 1 4 . . . . . . . . 2 2 . . Operator 6 | . 1 . 1 . . . 1 . 1 . 1 . . . . . 1 . . Watcher 18 | . 2 . 4 . . . 2 1 3 . 3 . . . . 3 . . . Swarmer 30 | . . . 4 . . 6 3 . . . 2 . 3 . 4 6 . . 2 Grunt 46 | . 9 . 13 3 . . 14 2 . . . . . . . 1 4 . . Duelist 4 | . . . 2 1 . . . . . . . . . . . . . 1 . Sentry 13 | . . 1 6 . . . 4 1 . . . . . . . 1 . . . Hunter 3 | . . . . . . . 1 . . . . . . . . 2 . . . Programmer 13 | . . . . . . . . 1 . . . . . . . 6 5 . 1 Best Kill Streak 7 | . 3 1 7 2 . 4 6 6 6 . 2 . 3 . 4 5 3 1 2 Combat Bots Only 5 | . 2 1 4 2 . 3 3 3 . . 2 . 3 . 4 5 3 1 2 Max Kills in Single Turn 6 | . 1 1 2 1 . 1 3 1 6 . 1 . 1 . 2 3 1 1 1 Gunslinging 1 | . . . 1 . . . . . . . . . . . . . . . . Exploded 3 | . . . 1 1 . . . . . . . . . . 2 3 . . . Melee 1 | . . . . . . . . 1 . . 1 . 1 . . 1 1 . 1 Uniques/NPCs Destroyed . | . . . . . . . . . . . . . . . . . . . . Combat | -11 -10 -10 -9 -9 -9 -8 -8 -7 -6 -6 -6 -6 -6 -6 -5 -5 -4 -4 -3 -------- Run | Yrd Mat Min Mat Min Exi Min Mat Fac Fac Was Fac Low Low Zio Pro Fac Fac Upp Res Hostile Shots Fired 1200 | . 44 8 121 7 . 24 101 69 60 . 17 1 16 . 59 213 104 40 316 Missed 402 | . 9 3 27 1 . 4 20 26 35 . 8 1 8 . 32 91 17 14 106 Damage Taken 15299 | . 471 71 1276 195 . 157 1189 506 480 . 205 . 122 60 516 2664 1759 738 4890 Core 4400 | . 139 . 218 53 . 33 171 161 106 . 70 . 32 . 141 998 534 432 1312 Absorbed by Shields 6 | . . . . . . . . . 6 . . . . . . . . . . Redirected to Shielding 120 | . 28 8 58 . . . 26 . . . . . . . . . . . . Ignored by Resistances 28 | . . . . . . . 28 . . . . . . . . . . . . Regen/Repaired (Parts) 512 | . . . . . . . 78 . 181 34 219 . . . . . . . . Core Remaining (%) 48 | 100 . 44 . . . 24 68 77 . . . . . . 58 . . 16 . Volleys Fired 340 | . 48 3 82 8 . 13 105 . 3 9 3 . . . 7 5 7 . 47 Largest 2 | . 2 2 2 2 . 2 2 . 1 1 1 . . . 1 1 1 . 2 Hottest 169 | . 115 115 136 113 . 116 123 . 36 40 40 . . . 36 81 65 . 169 Shots Fired 613 | . 96 6 160 15 . 28 211 . 3 9 4 . . 1 7 5 7 . 61 Gun 457 | . 96 6 79 8 . 10 202 . . 9 2 . . . . 1 7 . 37 Cannon 138 | . . . 81 7 . 18 9 . . . . . . . . . . . 23 Launcher 18 | . . . . . . . . . 3 . 2 . . 1 7 4 . . 1 Special . | . . . . . . . . . . . . . . . . . . . . Kinetic 125 | . 37 . 5 . . 12 39 . . . . . . . . . . . 32 Thermal 360 | . 59 6 96 7 . 14 166 . . 9 2 . . . . 1 . . . Explosive 13 | . . . . . . . . . 3 . 2 . . 1 7 . . . . Electromagnetic 115 | . . . 59 8 . 2 6 . . . . . . . . 4 7 . 29 Robot Hit Streak 23 | . 23 10 15 7 . 5 15 . . 3 5 . . . 6 1 6 . 10 Robot Miss Streak 5 | . 3 2 4 2 . 2 3 . . 2 . . . . 2 4 1 . 5 Penetration Max . | . . . . . . . . . . . . . . . . . . . . Secondary Targets 6 | . 2 . 2 . . . 1 . . . . . . . . . . . 1 Max Gunslinging Chain 1 | . 1 . 1 . . . 1 . . . . . . . . . . . 1 Shots Hit Robots 566 | . 63 4 109 12 . 16 146 34 5 6 23 . 4 . 2 47 54 7 34 Core Hits 207 | . 28 . 42 8 . 7 57 7 8 . 2 . 2 . 4 21 8 1 12 Critical Kills 5 | . . . . . . . . . . . . . 1 . . 2 2 . . Critical Parts Destroyed 29 | . . . . . . . . 3 . . 6 . . . . 6 13 . 1 Critical Strikes 48 | . 6 . 2 . . 1 3 3 . . 6 . 1 . . 9 15 . 2 Burn 10 | . 6 . . . . 1 3 . . . . . . . . . . . . Destroy 1 | . . . . . . . . . . . . . . . . . . . 1 Corrupt 3 | . . . 2 . . . . . . . . . . . . . . . 1 Smash 33 | . . . . . . . . 3 . . 6 . 1 . . 8 15 . . Sever 1 | . . . . . . . . . . . . . . . . 1 . . . Melee Attacks 321 | . . . . . . . . 62 51 . 44 . 7 1 2 83 61 8 2 Impact 265 | . . . . . . . . 51 43 . 44 . 7 1 2 48 61 8 . Slashing 54 | . . . . . . . . 11 8 . . . . . . 35 . . . Piercing . | . . . . . . . . . . . . . . . . . . . . Sneak Attacks 47 | . . . . . . . . 15 2 . 4 . 1 . . 17 8 . . Combat Hostiles 9 | . . . . . . . . 2 . . . . 1 . . 3 3 . . Follow-up Attacks 12 | . . . . . . . . 3 1 . . . . . . 2 6 . . Damage Inflicted 19091 | . 815 71 2488 284 . 364 3060 2162 1042 81 1378 . 257 . 432 3266 2532 279 580 Guns 5475 | . 815 71 942 129 . 138 2917 . . 81 . . . . . . 50 . 332 Cannons 1804 | . . . 1245 105 . 200 113 . . . . . . . . . . . 141 Explosions 2170 | . . . 301 50 . 26 22 . 717 . 190 . . . 432 370 . . 62 Melee 9581 | . . . . . . . . 2162 325 . 1188 . 257 . . 2888 2482 279 . Ramming 61 | . . . . . . . 8 . . . . . . . . 8 . . 45 Kinetic 1423 | . 330 . 37 . . 177 569 . . . . . . . . . . . 310 Thermal 5751 | . 485 71 1688 155 . 158 2420 . 693 81 . . . . . . . . . Explosive 872 | . . . . . . . . . 24 . 190 . . . 432 226 . . . Electromagnetic 1403 | . . . 763 129 . 29 63 . . . . . . . . 144 50 . 225 Impact 8103 | . . . . . . . . 1779 325 . 1188 . 257 . . 1793 2482 279 . Slashing 1478 | . . . . . . . . 383 . . . . . . . 1095 . . . Piercing . | . . . . . . . . . . . . . . . . . . . . Highest Corruption 62 | . . . 7 7 7 7 1 3 1 1 2 2 2 2 . 16 . . 62 Average Corruption 5 | . . . 2 7 7 7 1 2 1 1 1 2 2 2 . 11 . . 21 Corruption Purged 2 | . . . . . . . . 2 . . . . . . . . . . . Corruption Blocked 15 | . . . . . . . . . . . . . . . . . 12 . 3 Effects 191 | . . . 15 25 5 15 6 1 8 1 6 6 4 2 . 43 . . 54 Message Errors 49 | . . . 4 6 1 5 . . 1 . 1 2 2 . . 12 . . 15 Matter Fused 44 | . . . 5 2 . 4 1 . 3 1 3 3 1 . . 11 . . 10 Heat Flow Errors 17 | . . . 1 4 1 3 1 . . . . . 1 . . 5 . . 1 Energy Discharges 19 | . . . 2 4 1 . . . 2 . 1 1 . . . 4 . . 4 Parts Rejected 5 | . . . . . . . . . . . . . . . . 3 . . 2 Parts Fused 1 | . . . . 1 . . . . . . . . . . . . . . . Data Loss (minor) 19 | . . . 1 2 2 1 1 1 1 . . . . 1 . 4 . . 5 Data Loss (major) 8 | . . . 1 3 . . . . 1 . . . . . . 1 . . 2 Misfires 7 | . . . 1 . . 2 1 . . . 1 . . 1 . . . . 1 Alerts 8 | . . . . 2 . . 2 . . . . . . . . 2 . . 2 Misdirections 11 | . . . . . . . . . . . . . . . . 1 . . 10 Weapon Failures 3 | . . . . 1 . . . . . . . . . . . . . . 2 Overload Shots . | . . . . . . . . . . . . . . . . . . . . Overflow Damage 3783 | . . . 19 . . 7 . 850 254 . 496 . 65 . 38 1008 1031 15 . Projectiles 15 | . . . . . . 7 . 8 . . . . . . . . . . . Explosions 197 | . . . 19 . . . . . 132 . 8 . . . 38 . . . . Melee 3571 | . . . . . . . . 842 122 . 488 . 65 . . 1008 1031 15 . Knockbacks 37 | . . . . . . 1 . 10 2 . 3 . 1 . . 5 13 2 . Impact 35 | . . . . . . . . 9 2 . 3 . 1 . . 5 13 2 . Kinetic 1 | . . . . . . 1 . . . . . . . . . . . . . Secondary 1 | . . . . . . . . 1 . . . . . . . . . . . Self-Inflicted Damage 578 | . . . 60 48 . 4 3 . 256 . 86 . . 60 37 22 . . 2 Shots 14 | . . . 3 1 . 1 . . 4 . 2 . . 1 1 1 . . . Rammed 42 | . . . . . . . 2 . . . . . . . . 5 . . 35 Targets Rammed 44 | . . . . . . . 2 . . . . . . . . 5 . . 37 Kicked 1 | . . . . . . . . . . . . . . . . . . . 1 Crushed 1 | . . . . . . . . . . . . . . . . . . . 1 Highest Temperature 505 | . 264 82 505 277 186 339 315 . 22 16 8 . 255 18 2 263 26 3 206 Average Temperature 103 | . 72 38 155 85 98 118 67 . 13 8 4 . 136 13 2 107 15 3 41 Received Heat Transfer 2256 | . 261 18 474 33 . . 612 114 78 . 27 . . . 9 171 302 136 21 Effects 13 | . . . 11 . . 1 . . . . . . 1 . . . . . . Shutdowns 5 | . . . 5 . . . . . . . . . . . . . . . . Energy Bleed 4 | . . . 4 . . . . . . . . . . . . . . . . Interference 1 | . . . . . . . . . . . . . 1 . . . . . . Matter Decay 1 | . . . 1 . . . . . . . . . . . . . . . . Short Circuit 2 | . . . 1 . . 1 . . . . . . . . . . . . . Siege Activations . | . . . . . . . . . . . . . . . . . . . . Robots Corrupted 1 | . . . . . . . . . . . . . . . . . 1 . . Combat Hostiles 1 | . . . . . . . . . . . . . . . . . 1 . . Parts Fried 61 | . . . 3 1 . . . 12 7 . 11 . 1 . . 15 10 1 . Impact Corruptions 119 | . . . . . . . . 24 7 . 18 . 3 . . 31 35 1 . Robots Melted 2 | . . 1 . . . . 1 . . . . . . . . . . . . Combat Hostiles 2 | . . 1 . . . . 1 . . . . . . . . . . . . Parts Melted 16 | . 4 1 4 . . . 6 . 1 . . . . . . . . . . Heat Transferred 10718 | . 1813 185 2842 235 . 383 4588 . 450 222 . . . . . . . . . Parts Sabotaged . | . . . . . . . . . . . . . . . . . . . . Parts Stolen . | . . . . . . . . . . . . . . . . . . . . Parts Stripped . | . . . . . . . . . . . . . . . . . . . . Power Chain Reactions 9 | . . . 6 1 . 1 1 . . . . . . . . . . . . Alert | -11 -10 -10 -9 -9 -9 -8 -8 -7 -6 -6 -6 -6 -6 -6 -5 -5 -4 -4 -3 ------- Run | Yrd Mat Min Mat Min Exi Min Mat Fac Fac Was Fac Low Low Zio Pro Fac Fac Upp Res Peak Influence 812 | . 212 51 384 157 . 139 405 370 562 104 711 . . . . 812 94 . 212 Initial 637 | . . 7 19 101 . . . 184 136 71 72 . . . . 637 84 . 32 Average 195 | . 59 25 247 88 . 73 156 242 214 87 444 . . . . 533 39 . 49 Maximum Alert Level 3 | . 1 . 1 . . . 2 1 2 . 3 . . . . 3 . . 1 Low Security (%) 64 | 100 99 100 35 100 . 100 66 34 59 100 16 . . . . 5 100 . 98 Level 1 20 | . . . 64 . . . 32 65 25 . 11 . . . . 11 . . 1 Level 2 13 | . . . . . . . . . 15 . 70 . . . . 71 . . . Level 3 1 | . . . . . . . . . . . 1 . . . . 11 . . . Level 4 . | . . . . . . . . . . . . . . . . . . . . Level 5 . | . . . . . . . . . . . . . . . . . . . . High Security . | . . . . . . . . . . . . . . . . . . . . Max Security . | . . . . . . . . . . . . . . . . . . . . Squads Dispatched 48 | . 4 . 6 . . . 5 5 5 . 8 . . . . 5 5 . 5 Investigation 26 | . 3 . 5 . . . 5 3 2 . 3 . . . . . 2 . 3 Extermination 10 | . . . . . . . . 1 . . 2 . . . . 3 3 . 1 Reinforcement 9 | . 1 . 1 . . . . 1 1 . 3 . . . . 1 . . 1 Assault 1 | . . . . . . . . . 1 . . . . . . . . . . Garrison 2 | . . . . . . . . . 1 . . . . . . 1 . . . Intercept . | . . . . . . . . . . . . . . . . . . . . Searches Triggered 4 | . . . . . . . . . 1 . . . . . . 3 . . . Construction Impeded 1 | . . . . . . . . 1 . . . . . . . . . . . Haulers Reinforced 1 | . . . . . . . . . . . 1 . . . . . . . . Active Scanning Responses . | . . . . . . . . . . . . . . . . . . . . Cargo Convoy Interrupts . | . . . . . . . . . . . . . . . . . . . . Stealth | -11 -10 -10 -9 -9 -9 -8 -8 -7 -6 -6 -6 -6 -6 -6 -5 -5 -4 -4 -3 --------- Run | Yrd Mat Min Mat Min Exi Min Mat Fac Fac Was Fac Low Low Zio Pro Fac Fac Upp Res Distress Signals 8 | . 1 . 3 . . . 1 1 1 . . . . . 1 . . . . Communications Jammed . | . . . . . . . . . . . . . . . . . . . . Distress Signals . | . . . . . . . . . . . . . . . . . . . . Times Spotted 273 | . 15 2 39 3 . 6 30 25 27 9 18 3 5 . 14 34 18 6 19 Peak Tracking Total 14 | . 3 2 5 2 . 3 4 8 14 6 4 3 3 . 6 10 5 5 6 Tactical Retreats 38 | . 1 . 1 . . . 3 6 9 1 2 1 . . 2 8 3 . 1 Traps | -11 -10 -10 -9 -9 -9 -8 -8 -7 -6 -6 -6 -6 -6 -6 -5 -5 -4 -4 -3 ------- Run | Yrd Mat Min Mat Min Exi Min Mat Fac Fac Was Fac Low Low Zio Pro Fac Fac Upp Res Traps Triggered 13 | . 1 . 1 1 . . 1 2 5 . . . . . . . 1 . 1 Indirectly . | . . . . . . . . . . . . . . . . . . . . Trap Hack Attempts . | . . . . . . . . . . . . . . . . . . . . Triggered . | . . . . . . . . . . . . . . . . . . . . Disarmed 16 | . 6 . . . . . . . 6 . 4 . . . . . . . . Reprogrammed . | . . . . . . . . . . . . . . . . . . . . Reused . | . . . . . . . . . . . . . . . . . . . . Traps Extracted . | . . . . . . . . . . . . . . . . . . . . Installed . | . . . . . . . . . . . . . . . . . . . . Triggered 1 | . . . . . . . . . 1 . . . . . . . . . . Machines | -11 -10 -10 -9 -9 -9 -8 -8 -7 -6 -6 -6 -6 -6 -6 -5 -5 -4 -4 -3 ---------- Run | Yrd Mat Min Mat Min Exi Min Mat Fac Fac Was Fac Low Low Zio Pro Fac Fac Upp Res Machines Disabled 16 | . . . 3 . . . 2 . 6 . 2 . . . . 3 . . . Max in Single Turn 4 | . . . 1 . . . 1 . 4 . 1 . . . . 2 . . . Garrison Access 6 | . . . . . . . . . 4 . . . . . . 1 . . 1 Machines Repaired . | . . . . . . . . . . . . . . . . . . . . Machines Dismantled . | . . . . . . . . . . . . . . . . . . . . Machines Sabotaged . | . . . . . . . . . . . . . . . . . . . . Overloaded Fab Kills . | . . . . . . . . . . . . . . . . . . . . Hacking | -11 -10 -10 -9 -9 -9 -8 -8 -7 -6 -6 -6 -6 -6 -6 -5 -5 -4 -4 -3 --------- Run | Yrd Mat Min Mat Min Exi Min Mat Fac Fac Was Fac Low Low Zio Pro Fac Fac Upp Res Machines Accessed 86 | . 6 . 8 1 2 2 10 11 21 . 11 2 . . . 4 2 . 6 Terminals 44 | . 5 . 5 . . 2 6 7 8 . 6 . . . . 1 1 . 3 Fabricators 5 | . . . . . . . . 1 . . 2 . . . . . 1 . 1 Repair Stations 6 | . . . . . . . 2 . 3 . 1 . . . . . . . . Recycling Units 13 | . 1 . 2 . . . 1 3 3 . 1 . . . . 2 . . . Scanalyzers 7 | . . . 1 . . . 1 . 3 . 1 . . . . . . . 1 Garrison Access 6 | . . . . . . . . . 4 . . . . . . 1 . . 1 Total Hacks 330 | . 17 . 28 1 5 10 32 36 93 . 65 6 . . . 14 6 . 17 Successful 191 | . 8 . 17 1 5 3 20 17 55 . 39 6 . . . 9 2 . 9 Failed 136 | . 8 . 10 . . 7 12 19 37 . 26 . . . . 5 4 . 8 Catastrophic 23 | . 2 . 4 . . 1 3 5 4 . 2 . . . . 1 1 . . Database Lockouts 3 | . 1 . 1 . . . . . 1 . . . . . . . . . . Manual 99 | . 8 . 14 . 1 5 14 9 16 . 19 . . 4 . 2 3 . 4 Terminals 179 | . 16 . 19 . . 10 19 25 38 . 34 . . . . 7 3 . 8 Fabricators 16 | . . . . . . . . 5 . . 4 . . . . . 3 . 4 Repair Stations 38 | . . . . . . . 9 . 14 . 15 . . . . . . . . Recycling Units 24 | . 1 . 3 . . . 1 6 9 . 1 . . . . 3 . . . Scanalyzers 46 | . . . 6 . . . 3 . 22 . 11 . . . . . . . 4 Garrison Access 15 | . . . . . . . . . 10 . . . . . . 4 . . 1 Terminal Hacks 95 | . 7 . 8 1 5 3 8 12 18 . 17 6 . . . 5 . . 5 Record 22 | . . . . . 4 1 . 4 5 . 2 5 . . . . . . 1 Part Schematic 5 | . . . . . . . . 1 1 . 3 . . . . . . . . Robot Schematic 2 | . . . . . . . . 2 . . . . . . . . . . . Robot Analysis 19 | . 2 . 4 . . . 6 1 1 . 4 . . . . . . . 1 Prototype ID Bank 3 | . 2 . . . . . . . 1 . . . . . . . . . . Open Door 2 | . . . . 1 . . . . . . . 1 . . . . . . . Open DSF 5 | . . . . . . . . 1 2 . 1 . . . . . . . 1 Level Access Points 1 | . . . . . . . . . . . . . . . . 1 . . . Fabricator Index 1 | . . . . . . . . . . . . . . . . . . . 1 Recycling Unit Index 1 | . . . . . . . 1 . . . . . . . . . . . . Alert Level 14 | . 1 . 1 . . . 1 2 3 . 3 . . . . 2 . . 1 Unreport Threat 7 | . . . 1 . . . . 1 1 . 2 . . . . 2 . . . Disarm Traps 3 | . 1 . . . . . . . 1 . 1 . . . . . . . . Dispatch Records 1 | . . . . . . 1 . . . . . . . . . . . . . Hauler Manifests 4 | . 1 . 1 . . . . . 1 . 1 . . . . . . . . Registered Components 1 | . . . . . . . . . 1 . . . . . . . . . . Registered Prototypes 1 | . . . . . . . . . 1 . . . . . . . . . . Zone Layout 2 | . . . 1 . . 1 . . . . . . . . . . . . . Derelict Proto ID Bank 1 | . . . . . 1 . . . . . . . . . . . . . . Fabricator Hacks 9 | . . . . . . . . 2 . . 4 . . . . . 2 . 1 Network Status 2 | . . . . . . . . . . . 2 . . . . . . . . Load Schematic 3 | . . . . . . . . 1 . . . . . . . . 1 . 1 Build 4 | . . . . . . . . 1 . . 2 . . . . . 1 . . Repair Station Hacks 30 | . . . . . . . 8 . 11 . 11 . . . . . . . . Scan Component 17 | . . . . . . . 4 . 7 . 6 . . . . . . . . Repair 13 | . . . . . . . 4 . 4 . 5 . . . . . . . . Recycling Unit Hacks 16 | . 1 . 3 . . . 1 3 5 . 1 . . . . 2 . . . Process 1 | . . . . . . . . . 1 . . . . . . . . . . Report Inventory 12 | . 1 . 2 . . . 1 2 3 . 1 . . . . 2 . . . Retrieve Matter 1 | . . . . . . . . . 1 . . . . . . . . . . Retrieve Components 2 | . . . 1 . . . . 1 . . . . . . . . . . . Scanalyzer 35 | . . . 6 . . . 3 . 18 . 6 . . . . . . . 2 Insert Component 17 | . . . 3 . . . 1 . 9 . 3 . . . . . . . 1 Analyze 18 | . . . 3 . . . 2 . 9 . 3 . . . . . . . 1 Garrison Access Hacks 5 | . . . . . . . . . 3 . . . . . . 1 . . 1 Seal Access 5 | . . . . . . . . . 3 . . . . . . 1 . . 1 Unauthorized Hacks 1 | . . . . . . . . . . . . . . . . 1 . . . Terminals . | . . . . . . . . . . . . . . . . . . . . Fabricators . | . . . . . . . . . . . . . . . . . . . . Repair Stations . | . . . . . . . . . . . . . . . . . . . . Recycling Units 1 | . . . . . . . . . . . . . . . . 1 . . . Monitor 1 | . . . . . . . . . . . . . . . . 1 . . . Scanalyzers . | . . . . . . . . . . . . . . . . . . . . Garrison Access . | . . . . . . . . . . . . . . . . . . . . Data Cores Recovered 1 | . . . . . . . . . . . . . . . . . 1 . . Used 1 | . . . . . . . . . . . . . . . . . 1 . . Hacking Detections 59 | . 5 . 6 . . 2 9 10 13 . 7 . . . . 1 2 . 4 Full Trace Events 25 | . 5 . 6 . . . 6 2 2 . . . . . . . 2 . 2 Feedback Events 4 | . . . 2 . . . . . 2 . . . . . . . . . . Corruption 3 | . . . 2 . . . . . 1 . . . . . . . . . . Hackware Fried 1 | . . . . . . . . . 1 . . . . . . . . . . Feedback Blocked . | . . . . . . . . . . . . . . . . . . . . Robot Schematics Acquired 6 | . . . . . . . . 2 . . . . . 4 . . . . . Robots Built 4 | . . . . . . . . . . . 4 . . . . . . . . Authchips . | . . . . . . . . . . . . . . . . . . . . Time 157 | . . . . . . . . . . . 157 . . . . . . . . Total Robot Build Rating 16 | . . . . . . . . . . . 16 . . . . . . . . Part Schematics Acquired 35 | . . . 3 . . . 1 1 9 . 6 . . 14 . . . . 1 Parts Built 4 | . . . . . . . . 2 . . . . . . . . 2 . . Authchips . | . . . . . . . . . . . . . . . . . . . . Time 142 | . . . . . . . . 47 . . . . . . . . 95 . . Total Part Build Rating 20 | . . . . . . . . 10 . . . . . . . . 10 . . Parts Repaired 13 | . . . . . . . 4 . 4 . 5 . . . . . . . . Time 566 | . . . . . . . 153 . 133 . 280 . . . . . . . . Parts Recycled . | . . . . . . . . . . . . . . . . . . . . Recycled Matter 5 | . . . . . . . . . 5 . . . . . . . . . . Retrieved Matter 5 | . . . . . . . . . 5 . . . . . . . . . . Retrieved Components 4 | . . . 2 . . . . 2 . . . . . . . . . . . Parts Scanalyzed 16 | . . . 3 . . . 1 . 8 . 3 . . . . . . . 1 Part Schematics Acquired 16 | . . . 3 . . . 1 . 8 . 3 . . . . . . . 1 Parts Damaged 2 | . . . . . . . . . 2 . . . . . . . . . . Bothacking | -11 -10 -10 -9 -9 -9 -8 -8 -7 -6 -6 -6 -6 -6 -6 -5 -5 -4 -4 -3 ------------ Run | Yrd Mat Min Mat Min Exi Min Mat Fac Fac Was Fac Low Low Zio Pro Fac Fac Upp Res Used RIF Installer . | . . . . . . . . . . . . . . . . . . . . Robots Hacked . | . . . . . . . . . . . . . . . . . . . . Non-combat . | . . . . . . . . . . . . . . . . . . . . Combat . | . . . . . . . . . . . . . . . . . . . . Robot Hacks Applied . | . . . . . . . . . . . . . . . . . . . . Relay Couplers Released 3 | . . . . . . . . . 3 . . . . . . . . . . Machine Destruction 3 | . . . . . . . . . 3 . . . . . . . . . . Fabnet Peak Effective % . | . . . . . . . . . . . . . . . . . . . . Robots Rewired 2 | . . . . . . . . 2 . . . . . . . . . . . Allies Hacked 1 | . . . . . . . . . . . 1 . . . . . . . . Hacks Repelled . | . . . . . . . . . . . . . . . . . . . . Allies | -11 -10 -10 -9 -9 -9 -8 -8 -7 -6 -6 -6 -6 -6 -6 -5 -5 -4 -4 -3 -------- Run | Yrd Mat Min Mat Min Exi Min Mat Fac Fac Was Fac Low Low Zio Pro Fac Fac Upp Res Total Allies 34 | . . 3 . 1 . . . 2 . 20 4 2 . . . . . 1 1 Largest Group 19 | . . 3 3 1 1 . . 2 . 19 18 2 . . . . . 1 2 Highest-Rated Group 684 | . . 40 40 31 31 . . 59 . 684 659 45 . . . . . 165 195 Highest-Rated Ally 165 | . . 16 16 31 31 . . 34 . 50 50 25 . . . . . 165 165 Total Orders . | . . . . . . . . . . . . . . . . . . . . Ally Attacks 346 | . . 12 37 . . . . 9 . 105 162 . . . . . . 1 20 Total Damage 10141 | . . 145 322 . . . . 643 . 3411 4887 . . . . . . 26 707 Kills 59 | . . 1 3 . . . . 7 . 7 34 . . . . . . . 7 Allies Corrupted . | . . . . . . . . . . . . . . . . . . . . Allies Melted 1 | . . . . . . . . . . . 1 . . . . . . . . Intel | -11 -10 -10 -9 -9 -9 -8 -8 -7 -6 -6 -6 -6 -6 -6 -5 -5 -4 -4 -3 ------- Run | Yrd Mat Min Mat Min Exi Min Mat Fac Fac Was Fac Low Low Zio Pro Fac Fac Upp Res Robot Analysis Total 18 | . 2 . 4 . . . 5 1 1 . 4 . . . . . . . 1 Derelict Logs Recovered 12 | . . 1 . 2 . . . . . . . 2 2 3 2 . . . . Drone Launches . | . . . . . . . . . . . . . . . . . . . . Drone Recoveries . | . . . . . . . . . . . . . . . . . . . . Exploration | -11 -10 -10 -9 -9 -9 -8 -8 -7 -6 -6 -6 -6 -6 -6 -5 -5 -4 -4 -3 ------------- Run | Yrd Mat Min Mat Min Exi Min Mat Fac Fac Was Fac Low Low Zio Pro Fac Fac Upp Res Turns Passed 16575 | 80 998 779 1439 818 350 421 2380 975 1621 192 886 201 238 415 326 1671 1537 119 1129 Spaces Moved 14971 | 43 515 543 610 515 239 224 1048 1397 2137 387 1165 504 704 997 751 1766 634 91 701 Core 496 | 5 . . . . . . . 2 . . . . . . . 131 212 91 55 Treads 283 | 38 214 . . . . . . . . . . . . . . 2 . . 29 Legs 85 | . . . . . . . . . . . . . . . . 41 . . 44 Wheels 3765 | . 301 543 610 515 239 224 1048 5 . . . . . . . 149 123 . 8 Hover 961 | . . . . . . . . . . . . . . . . 450 299 . 212 Flight 9381 | . . . . . . . . 1390 2137 387 1165 504 704 997 751 993 . . 353 Fastest Speed 26 | 50 130 130 130 145 145 145 130 26 28 28 28 29 29 29 29 30 51 50 27 Average Speed 67 | 148 142 130 159 147 145 145 140 29 29 28 28 29 29 29 32 62 121 90 66 Slowest Speed 440 | 160 160 130 190 190 145 145 145 250 104 28 29 29 29 29 37 280 300 100 440 Overloaded Moves . | . . . . . . . . . . . . . . . . . . . . Propulsion Burnouts . | . . . . . . . . . . . . . . . . . . . . Robots Hopped 12 | . . . . . . . . . . . 9 2 . . 1 . . . . Cave-ins Triggered . | . . . . . . . . . . . . . . . . . . . . Exploration Rate (%) 51 | 3 69 77 54 100 61 44 58 38 47 96 21 47 84 86 83 34 7 18 11 Regions Visited 19 Branch Regions 9 Pre-discovered Areas 6 | . . . . 1 1 . . . . . . . 1 3 . . . . . Known Exits Taken 14 | . . . 1 1 1 1 1 1 . . 1 1 1 1 1 1 1 1 . Unknown Exits Taken 3 | 1 1 1 . . . . . . . . . . . . . . . . . Scrap Searched 15 | . . 2 . 2 . . . . . . . 2 1 4 4 . . . . Spaces Dug 85 | . . . . . . . . 14 34 . 11 . . . . 21 5 . . Terrain Destroyed 290 | . . . 17 6 . 14 6 14 81 . 23 . . 16 41 67 5 . . Melee 85 | . . . . . . . . 14 34 . 11 . . . . 21 5 . . Projectile 9 | . . . . . . 9 . . . . . . . . . . . . . AOE 196 | . . . 17 6 . 5 6 . 47 . 12 . . 16 41 46 . . . Terrain Rammed . | . . . . . . . . . . . . . . . . . . . . Walls Destroyed . | . . . . . . . . . . . . . . . . . . . . Machines Disabled . | . . . . . . . . . . . . . . . . . . . . Actions | -11 -10 -10 -9 -9 -9 -8 -8 -7 -6 -6 -6 -6 -6 -6 -5 -5 -4 -4 -3 --------- Run | Yrd Mat Min Mat Min Exi Min Mat Fac Fac Was Fac Low Low Zio Pro Fac Fac Upp Res Total 20287 | 56 689 611 935 560 244 296 1758 1868 3053 462 1631 556 724 1121 822 2220 1291 113 1277 Wait 3854 | . 77 48 156 21 . 46 486 295 764 59 395 55 9 111 47 283 558 14 430 Move 14932 | 42 514 542 609 514 238 223 1047 1396 2137 386 1149 499 703 996 748 1765 633 90 701 Hop 9 | . . . . . . . . . . . 6 2 . . 1 . . . . Pick Up 175 | 4 30 5 31 4 3 3 34 4 12 4 5 . . 1 5 19 5 . 6 Fast Attach 158 | 8 2 2 9 4 . 2 22 15 13 . 8 . 2 4 2 29 8 . 28 Attach 80 | . 1 1 13 1 . 2 4 13 5 . 3 . . 1 6 11 7 1 11 Detach 34 | 2 . . 5 1 . 1 2 5 2 . 2 . . 2 . 5 2 . 5 Swap 48 | . 4 3 1 1 . 2 10 11 5 . 2 . . . . 6 2 . 1 Drop 206 | . 13 7 29 6 3 4 46 33 14 4 11 . 2 5 4 17 2 . 6 Fire 340 | . 48 3 82 8 . 13 105 . 3 9 3 . . . 7 5 7 . 47 Melee 292 | . . . . . . . . 56 44 . 44 . 7 1 2 75 53 8 2 Ram 7 | . . . . . . . 2 . . . . . . . . 1 . . 4 Kick 1 | . . . . . . . . . . . . . . . . . . . 1 Crush 37 | . . . . . . . . . . . . . . . . 4 . . 33 Escape Stasis 85 | . . . . . . . . 18 54 . . . . . . . 13 . . Rewire 29 | . . . . . . . . 22 . . 3 . 1 . . . 1 . 2 Trap . | . . . . . . . . . . . . . . . . . . . . Miscellaneous . | . . . . . . . . . . . . . . . . . . . . Route ------- -11/Scrapyard -10/Materials (discovered 4 exits: *Mat x2 / [*Min x2]) -10/Mines -9/Materials (discovered 2 exits: *Mat / *Min) -9/Mines (discovered 3 exits: *Mat x2 / *Exi) -9/Exiles -8/Mines -8/Materials -7/Factory (discovered 2 exits: *Fac x2) -6/Factory (discovered 3 exits: *Fac / *Low x2) -6/Waste -6/Factory (discovered 2 exits: *Low x2) -6/Lower Caves -6/Lower Caves -6/Zion -5/Proximity Caves -5/Factory (discovered 5 exits: *Fac x4 / Upp) -4/Factory (discovered 2 exits: *Upp / Ext) -4/Upper Caves -3/Research History --------- Turn | Location | Event 22 | -11/Scrapyard | Discovered new exit (range 15) 81 | -11/Scrapyard | Entered Materials 297 | -10/Materials | Discovered new exit (range 12) 300 | -10/Materials | Central database locked down 316 | -10/Materials | Build established: Mutant 436 | -10/Materials | Discovered new exit (range 13) 461 | -10/Materials | Core integrity fell below 50% 702 | -10/Materials | Discovered new exit (range 3) 1038 | -10/Materials | Discovered new exit (range 16) 1079 | -10/Materials | Entered Mines 1169 | -10/Mines | Found a damaged Exp. Sensor Array with a note attached 1172 | -10/Mines | Found Prototype Device 1398 | -10/Mines | Assisted by bots powering up and referring to "LRC-V3" 1682 | -10/Mines | Learned 8 Materials zone layouts 1696 | -10/Mines | Discovered new exit (range 13) 1858 | -10/Mines | Entered Materials 1858 | -9/Materials | Accompanied by 3 allies 1858 | -9/Materials | Evolved 2 slots: Utility x2 1859 | -9/Materials | Identified exit to Mines 1910 | -9/Materials | Identified Exp. Sensor Array 1933 | -9/Materials | Lost 3 parts (2n1w) 2545 | -9/Materials | Lost 4 parts (1p1n2w) 2722 | -9/Materials | Core integrity fell below 50% 2964 | -9/Materials | Central database locked down 3102 | -9/Materials | Discovered new exit (range 13) 3126 | -9/Materials | Identified exit to Materials 3297 | -9/Materials | Entered Mines 3407 | -9/Mines | Discovered exit to Materials (range 10) 3766 | -9/Mines | Learned Materials terminal intel 3772 | -9/Mines | Discovered exit to Materials (range 7) 3778 | -9/Mines | Met a Derelict who couldn't figure out how to use a Trap Extractor 4005 | -9/Mines | Learned location of Storage (-7) 4011 | -9/Mines | Received a Mining Laser from a helpful Derelict 4108 | -9/Mines | Deemed a non-threat by the Exiles lab entrance 4109 | -9/Mines | Discovered new exit (range 5) 4114 | -9/Mines | Identified exit to Exiles 4115 | -9/Mines | Entered Exiles 4115 | -9/Exiles | Accompanied by 1 ally 4152 | -9/Exiles | Met 8R-AWN 4175 | -9/Exiles | Met EX-HEX 4218 | -9/Exiles | Met EX-BIN 4236 | -9/Exiles | Aligned with FarCom system 4237 | -9/Exiles | Given EX-Vault access code 4271 | -9/Exiles | Opened EX-Vault 4280 | -9/Exiles | Found Potential Leg 4283 | -9/Exiles | Found Potential Leg 4313 | -9/Exiles | Warned to stay clear of 0b10 Research branches 4333 | -9/Exiles | Exiles lab attacked by MAIN.C 4381 | -9/Exiles | Learned location of Zion (-6) 4449 | -9/Exiles | Discovered new exit (range 12) 4464 | -9/Exiles | Identified exit to Mines 4465 | -9/Exiles | Left Exiles lab with Potential Leg 4465 | -9/Exiles | Entered Mines 4765 | -8/Mines | Build established: Skirmisher 4881 | -8/Mines | Discovered exit to Materials (range 5) 4886 | -8/Mines | Entered Materials 4886 | -8/Materials | Evolved 2 slots: Utility x2 4887 | -8/Materials | Loaded intel: 12 terminal locations 5309 | -8/Materials | Build established: Scavenger-Mutant 5353 | -8/Materials | Repaired Lgt. Armor Plating 6718 | -8/Materials | Build established: Mutant 6765 | -8/Materials | Repaired Reflective Plating 6818 | -8/Materials | Repaired Imp. Flight Unit 6857 | -8/Materials | Repaired Imp. Signal Interpreter 6920 | -8/Materials | Discovered new exit (range 3) 6923 | -8/Materials | Identified exit to Factory 7266 | -8/Materials | Entered Factory 7266 | -7/Factory | Evolved 2 slots: Propulsion x2 8036 | -7/Factory | Build established: Hacker-Scout 8126 | -7/Factory | Fabricated Adv. Terrain Scanner? 8135 | -7/Factory | Lost 3 parts (1p2n) 8166 | -7/Factory | Discovered new exit (range 10) 8168 | -7/Factory | Identified exit to Factory 8228 | -7/Factory | Discovered exit to Factory (range 16) 8241 | -7/Factory | Entered another Factory area 8241 | -6/Factory | Evolved 2 slots: Utility x2 8436 | -6/Factory | Discovered new exit (range 14) 8447 | -6/Factory | Hacking Suite fried by hacking feedback 8480 | -6/Factory | Discovered new exit (range 16) 8482 | -6/Factory | Identified exit to Lower Caves 8733 | -6/Factory | Discovered new exit (range 10) 8735 | -6/Factory | Identified exit to Factory 9288 | -6/Factory | Found Prototype Launcher 9288 | -6/Factory | Identified Scatter Rocket Array 9291 | -6/Factory | Search patrols dispatched 9359 | -6/Factory | Central database locked down 9423 | -6/Factory | Repaired Sml. Storage Unit 9470 | -6/Factory | Repaired Nuclear Core 9516 | -6/Factory | Repaired Powered Hammer 9600 | -6/Factory | Spotted B-75 Beast 9730 | -6/Factory | Repaired Nuclear Pulse Thruster 9862 | -6/Factory | Sucked down chute 9862 | -6/Factory | Entered Waste 9863 | -6/Waste | Met a frightened Derelict 9875 | -6/Waste | Spotted C-40 Crusher 9877 | -6/Waste | Spotted C-40 Crusher 9881 | -6/Waste | Spotted C-40 Crusher 9898 | -6/Waste | Spotted C-40 Crusher 9898 | -6/Waste | Spotted C-40 Crusher 9900 | -6/Waste | Spotted C-40 Crusher 9918 | -6/Waste | Warlord forces began an assault 9942 | -6/Waste | Allies destroyed C-40 Crusher 9946 | -6/Waste | Allies destroyed C-40 Crusher 9953 | -6/Waste | Allies destroyed C-40 Crusher 9956 | -6/Waste | Allies destroyed C-40 Crusher 9960 | -6/Waste | Allies destroyed C-40 Crusher 9967 | -6/Waste | Allies destroyed C-40 Crusher 9993 | -6/Waste | Discovered new exit (range 16) 10002 | -6/Waste | Identified exit to Factory 10054 | -6/Waste | Entered Factory 10054 | -6/Factory | Accompanied by 18 allies 10094 | -6/Factory | Lost 3 allies 10145 | -6/Factory | Fabricated G-50 Soldier? 10183 | -6/Factory | Discovered exit to Lower Caves (range 4) 10219 | -6/Factory | Fabricated K-01 Serf? 10568 | -6/Factory | Lost 5 allies 10617 | -6/Factory | Repaired Lgt. Fission Core 10681 | -6/Factory | Repaired Field Propulsion Array 10732 | -6/Factory | Repaired Nuclear Pulse Thruster 10813 | -6/Factory | Repaired Cld. Cesium-ion Thruster 10879 | -6/Factory | Repaired Imp. Terrain Scanner 10908 | -6/Factory | P-60 Hacker assimilated allied 1G-S2P(d) 10935 | -6/Factory | Discovered exit to Lower Caves (range 15) 10940 | -6/Factory | Entered Lower Caves 10978 | -6/Lower Caves | A Commander dispatched an escort 10981 | -6/Lower Caves | Learned Extension emergency access door positions 10981 | -6/Lower Caves | Learned Armory emergency access door positions 10981 | -6/Lower Caves | Learned Armory stockpile data 10981 | -6/Lower Caves | Learned Factory garrison access intel 11009 | -6/Lower Caves | Encountered a Warlord checkpoint 11038 | -6/Lower Caves | Learned 4 Factory zone layouts 11040 | -6/Lower Caves | Discovered new exit (range 10) 11042 | -6/Lower Caves | Identified exit to Lower Caves 11141 | -6/Lower Caves | Entered another Lower Caves area 11141 | -6/Lower Caves | Accompanied by 1 ally 11142 | -6/Lower Caves | Commander's escort returned to base 11205 | -6/Lower Caves | Learned 8 Factory zone layouts 11226 | -6/Lower Caves | Learned location of Extension (-4) 11242 | -6/Lower Caves | Build established: Hacker-Sprinter 11288 | -6/Lower Caves | Encountered a Warlord checkpoint 11374 | -6/Lower Caves | Discovered new exit (range 15) 11378 | -6/Lower Caves | Identified exit to Zion 11379 | -6/Lower Caves | Entered Zion 11393 | -6/Zion | Learned Factory trap positions 11401 | -6/Zion | Discovered new exit (range 10) 11404 | -6/Zion | Identified exit to Proximity Caves 11419 | -6/Zion | System corruption cleaned by Quarantine Array 11467 | -6/Zion | Received a visual enhancement algorithm 11693 | -6/Zion | Rebuked by Imprinter 11761 | -6/Zion | Found Prototype Device 11761 | -6/Zion | Identified Mobile Refinery Mk. CCLXVII 11794 | -6/Zion | Entered Proximity Caves 11797 | -5/Proximity Caves | Spotter reported a threat 11797 | -5/Proximity Caves | Spotter reported a threat 11803 | -5/Proximity Caves | Learned 4 Factory zone layouts 11832 | -5/Proximity Caves | Spotted B-75 Beast 11960 | -5/Proximity Caves | Spotter reported a threat 11997 | -5/Proximity Caves | Attracted the attention of an 0b10 checkpoint 12045 | -5/Proximity Caves | Spotter reported a threat 12085 | -5/Proximity Caves | Lost 9 parts (3p1n3u2w) 12120 | -5/Proximity Caves | Entered Factory 12120 | -5/Factory | Evolved 2 slots: Utility x2 12121 | -5/Factory | Identified exit to Factory 12121 | -5/Factory | Identified exit to Upper Caves 12122 | -5/Factory | Loaded intel: 84 trap records 12123 | -5/Factory | Loaded intel: 4 garrison access locations 12348 | -5/Factory | Build established: Hacker-Mutant 12420 | -5/Factory | Search patrols dispatched 12605 | -5/Factory | Garrison activated, responded to threat 12689 | -5/Factory | Discovered exit to Factory (range 9) 12713 | -5/Factory | Lost 3 parts (3n) 12720 | -5/Factory | Search patrols dispatched 12773 | -5/Factory | System corruption reached 10% 12809 | -5/Factory | Lost 7 parts (3n4u) 12881 | -5/Factory | Core integrity fell below 50% 12911 | -5/Factory | Lost 5 parts (1p3n1w) 13020 | -5/Factory | Search patrols dispatched 13336 | -5/Factory | Build established: Hacker-Assassin 13469 | -5/Factory | Lost 6 parts (3n1u2w) 13492 | -5/Factory | Core integrity fell below 20% 13530 | -5/Factory | Lost 3 parts (1p2n) 13791 | -5/Factory | Entered another Factory area 13791 | -4/Factory | Evolved 2 slots: Propulsion x1, Utility x1 13792 | -4/Factory | Identified exit to Extension 13960 | -4/Factory | Build established: Hacker-Mutant 14090 | -4/Factory | Fabricated Adv. Terrain Scanner? 14444 | -4/Factory | Lost 3 parts (1p1n1u) 14506 | -4/Factory | Lost 5 parts (1p3n1u) 15269 | -4/Factory | Lost 3 parts (1n1u1w) 15298 | -4/Factory | Build established: Scavenger-Mutant 15308 | -4/Factory | Discovered new exit (range 14) 15325 | -4/Factory | Identified exit to Upper Caves 15328 | -4/Factory | Entered Upper Caves 15387 | -4/Upper Caves | Core integrity fell below 50% 15443 | -4/Upper Caves | ME-RLN showed up to help 15444 | -4/Upper Caves | Core integrity fell below 20% 15445 | -4/Upper Caves | ME-RLN revealed a hidden path 15447 | -4/Upper Caves | Identified exit to Research 15447 | -4/Upper Caves | Entered Research 15447 | -3/Research | Accompanied by 1 ally (ME-RLN) 15447 | -3/Research | Evolved 2 slots: Utility x2 15471 | -3/Research | Lost 4 parts (2p1u1w) 15557 | -3/Research | System corruption reached 10% 15588 | -3/Research | Lost 5 parts (1n2u2w) 15739 | -3/Research | Found Prototype Hackware 15739 | -3/Research | Identified System Mapper 15762 | -3/Research | Found Fusion Bomb Launcher 15830 | -3/Research | Found Prototype Protection 15830 | -3/Research | Identified Centrium Heavy Armor Plating 16030 | -3/Research | Build established: Scavenger-Sprinter 16156 | -3/Research | Spotted B-86 Titan 16265 | -3/Research | Lost 5 parts (1p3n1w) 16332 | -3/Research | System corruption reached 30% 16352 | -3/Research | Core integrity fell below 50% 16423 | -3/Research | Lost 5 parts (1n4u) 16459 | -3/Research | Core integrity fell below 20% 16502 | -3/Research | Build established: Hacker-Mutant 16543 | -3/Research | Lost 6 parts (1p3n2w) 16576 | -3/Research | Destroyed by P-80 Master with Gamma Rifle Last Messages --------------- 16523_ Integrated Corrupted Com. Wheel (+2). 16526_ Acquired 2 matter. 16527_ Acquired 4 matter. 16528_ System corrupted: Matter fused (-6). 16528_ Acquired 2 matter. 16533_ Acquired Imp. Antigrav System. 16547_ System corrupted: Matter fused (-6). 16553_ O-16 Technician uses terminal to summon reinforcements. 16553_ ALERT: Hostiles spotted, dispatching reinforcements to Terminal R016. 16553_ O-16 Technician locks terminal. 16556_ Mic. Antimatter Reactor destroyed. 16560_ P-80 Master misfires. 16565_ Acquired Prototype Reactor. 16565_ Identified Hvy. Antimatter Reactor. 16566_ System corrupted: Matter fused (-6). 16570_ Terminal disabled. 16573_ Com. Wheel destroyed. [Achievement: This Is Interesting...] Map ----- +----------------------------------------------------+ | ?????????????????????????????????????????????????? | | ?????????????????????????????????????????????????? | | ?????????????????????????????????????????????????? | | ?????????????????????????????????????????????????? | | ???????????????????????? ????????????????????????? | | ???????????????????????? ????????????????????????? | | ???????????????????????? ????????????????????????? | | ???????????????????????? ????????????????????????? | | ???????????????????????? ????????????????????????? | | ???????????????????????? ????????????????????????? | | ???????????????????????? ????????????????????????? | | ??????????????????###### #???????????????????????? | | ???????#######????# # #???????????????????????? | | ???????# #????# # #???????????????????????? | | ???????# ###### # #???????????????????????? | | ######## + # #???????????????????????? | | ^ ### ## / #???????????????????????? | | ##### ## ### ## # ###############?????????? | | #####+#########%% # # # # #?????????? | | #######%%%# + / # #?????????? | | ! # #%%%# # # # #?????????? | | # ##%####+## # # #?????????? | | # ##%#??# # # #?????????? | | # ##%##?#u # # #?????????? | | # # ### ##+########+###?????????? | | # + *! @ #???????????? | | #! #! %### ##+## #???????????? | | ########/#### #? # #???????????? | | ####/#########= % + #?? # #???????????? | | ## ! ###?? # p##+###?????????? | | ## |!#?????# ## #?????????? | | ## #?????# ## #?????????? | | ##########????# ## #?????????? | | ####+### # #????# ## #?????????? | | ?? # # #????# + #?????????? | | # s# """ #????# #" "#### #?????????? | | !| "" # s# """ #????# #"""#??# #?????????? | | !| """# #!! " #????# #####??#####?????????? | | || S"# #/ "" #????# ?????????????????????? | | """# + #????# ?????????????????????? | | """# # #????# ?????????????????????? | | ?# # #????? ?????????????????????? | | ???# ##############? ?????????????????????? | | ####???# ^ ??????????????????????? | | ???????# #?????????????????????????????? | | ???????# #?????????????????????????????? | | ???????# ^ #?????????????????????????????? | | ######## #?????????????????????????????? | | # #?????????????????????????????? | | # /!= #?????????????????????????????? | +----------------------------------------------------+ Best States ------------- Heat Dissipation 48 Energy Generation 25 Energy Capacity 340 Matter Stores 300 Matter Capacity 300 Sight Range 16 Robot Scan Range 20 Terrain Scan Range 20 Terrain Scan Density 210 ECM Strength 2 Additional Mass Support 12 Corruption Block 15 Armor Coverage 600 Resistance: KI 25 Resistance: TH 10 Core Shielding 20 Power Shielding 33 Propulsion Shielding 33 Weapon Shielding 33 Evasion (%) 64 Melee Accuracy 14 Target Analysis 9 Recoil Reduction 3 Offensive Hacking 34 Defensive Hacking 20 Item Schematics ----------------- Signal Interpreter | -9/Materials | Scanalyzed ECM Suite | -9/Materials | Scanalyzed Hacking Suite | -9/Materials | Scanalyzed System Shield | -8/Materials | Scanalyzed Adv. Terrain Scanner | -7/Factory | Hacked Adv. Terrain Scan Processor | -6/Factory | Scanalyzed Imp. Signal Interpreter | -6/Factory | Scanalyzed Imp. Reaction Control System | -6/Factory | Scanalyzed Prc. Grenade Launcher | -6/Factory | Scanalyzed Adv. ECM Suite | -6/Factory | Scanalyzed Cloaking Device | -6/Factory | Scanalyzed Triangulator | -6/Factory | Scanalyzed VTOL Module | -6/Factory | Scanalyzed Lgt. Fission Core | -6/Factory | Hacked Adv. System Shield | -6/Factory | Hacked Cld. Ion Engine | -6/Factory | Hacked Imp. Surge Thruster | -6/Factory | Hacked Field Propulsion Array | -6/Factory | Scanalyzed Cld. Cesium-ion Thruster | -6/Factory | Scanalyzed Powered Hammer | -6/Factory | Scanalyzed Enh. Gauss Cannon | -6/Zion | Archive Phase Cannon | -6/Zion | Archive Energy Well | -6/Zion | Archive Imp. Coolant Injector | -6/Zion | Archive Myomer Leg | -6/Zion | Archive Hpw. Shock Rifle | -6/Zion | Archive 0b10 Decoder Chip [Skirmisher] | -6/Zion | Archive Adv. Trap Extractor | -6/Zion | Archive Thermic Laser | -6/Zion | Archive Adv. Cooling System | -6/Zion | Archive Falx | -6/Zion | Archive Imp. Shock Absorption System | -6/Zion | Archive Fission Core | -6/Zion | Archive Matter Neutralizer | -6/Zion | Archive Adv. Hacking Suite | -3/Research | Scanalyzed Robot Schematics ------------------ Y-54 Guardian | -7/Factory | Hacked R-06 Scavenger | -7/Factory | Hacked L-41 Fighter | -6/Zion | Archive A-15 Conveyor | -6/Zion | Archive T-07 Excavator | -6/Zion | Archive X-82 Rainmaker | -6/Zion | Archive Fabricated ------------ Adv. Terrain Scanner | x2 | -7/Factory G-50 Soldier | x3 | -6/Factory | Preloaded K-01 Serf | x1 | -6/Factory | Preloaded Adv. Terrain Scanner | x2 | -4/Factory Alien Tech Used ----------------- None Achievements -------------- Batter Up Dangerous Findings Dynamic Key Respectable Loadout Slippery One This Is Interesting... Z1$+NX3F=JRE3_ZNQR Challenges ------------ None Game ------ Seed ReactiveRemoteHammer Manual? 0 Play Time 04:13:44 Cumulative 34.2 hours Start 2024.04.09 @ 16:54:17 End 2024.04.09 @ 21:25:32 Sessions 1 Manual Loads 0 Difficulty Rogue Special Mode None Game No. 22 Rogue 22 Adventurer 0 Explorer 0 Win Type - Total 0 Types 0/0/0/0/0/0/0/0/0 Lore% 29 Gallery% 38 Achievement% 30 Wizard Run 0 Options --------- Layout 2 ASCII 0 Keyboard 1 Movement Numpad Keybinds 0 Fullscreen 1 Font 24/Smallcaps Map View 50x44 Zoom Use 0% Tactical HUD 1 Map Filters NONE Filters NONE Steam 1 RUN: 22e47ae7-074e-481f-9b32-59fa0eb68a7f